bitfinex-derivatives/quotes_BNBF0:USTF0_20241225
["timestamp","ask_amount","ask_price","bid_price","bid_amount"]
[1735090150741,0.26296871,700.03,697.89,1.05504146]
[1735090151839,0.26296871,700.03,697.86,1.05504146]
[1735090152032,0.26297455,700.02,697.86,1.05504146]
[1735090152234,0.26297455,700.01,697.86,1.05504146]
[1735090152534,0.26297455,700.0,697.86,1.05504146]
[1735090152735,0.26296686,699.99,697.9,1.05504146]
[1735090152935,0.26296686,699.98,697.9,1.05504146]
[1735090153138,0.26296686,699.97,697.9,1.05504146]
[1735090153338,0.26296686,699.96,697.92,1.05504146]
[1735090153536,0.26296686,699.95,697.92,1.05504146]
[1735090153841,0.26296686,699.94,697.92,1.05504146]
[1735090154044,0.26296686,699.93,697.94,1.05504146]
[1735090154243,0.26296686,699.92,697.94,1.05504146]
[1735090154536,0.26296686,699.91,697.94,1.05504146]
[1735090154741,0.26297322,699.9,697.94,1.05504146]
[1735090154941,0.26297322,699.89,697.94,1.05504146]
[1735090155139,0.26297322,699.88,697.95,1.05504146]
[1735090155445,0.26297322,699.87,697.95,1.05504146]
[1735090155637,0.26297322,699.86,697.95,1.05504146]
[1735090155843,0.26297322,699.85,697.95,1.05504146]
[1735090156143,0.26297322,699.84,698.09,1.05504146]
[1735090156342,0.26297322,699.83,698.09,1.05504146]
[1735090156644,1.06663835,699.89,698.09,1.05504146]
[1735090156645,0.26297322,699.82,698.09,1.05504146]
[1735090156943,0.26297322,699.81,698.09,1.05504146]
[1735090157243,0.26297322,699.8,698.13,1.05504146]
[1735090157440,1.06663835,699.9,698.13,1.05504146]
[1735090157640,0.26296197,699.89,698.13,1.05504146]
[1735090158245,1.06663835,699.86,698.17,1.05504146]
[1735090158543,0.26296197,699.85,698.17,1.05504146]
[1735090158942,0.26297594,699.84,698.17,1.05504146]
[1735090159143,0.26297594,699.83,698.17,1.05504146]
[1735090159444,1.06663835,699.79,698.17,1.05504146]
[1735090159744,0.26297594,699.78,698.17,1.05504146]
[1735090160342,1.06663835,699.75,698.22,1.05504146]
[1735090160543,0.26297601,699.74,698.22,1.05504146]
[1735090161346,1.06663835,699.69,698.27,1.05504146]
[1735090161646,0.26296687,699.68,698.27,1.05504146]
[1735090162045,0.26296687,699.68,698.31,1.05504146]
[1735090162847,1.06663835,699.67,698.3,1.05504146]
[1735090163047,0.26296687,699.66,698.3,1.05504146]
[1735090163542,0.26297906,699.65,698.3,1.05504146]
[1735090163746,0.26297906,699.64,698.3,1.05504146]
[1735090163947,0.26297906,699.63,698.3,1.05504146]
[1735090164141,1.06663835,699.67,698.3,1.05504146]
[1735090164142,0.26297906,699.62,698.3,1.05504146]
[1735090164449,0.26297906,699.61,698.3,1.05504146]
[1735090164750,0.26297906,699.6,698.3,1.05504146]
[1735090164947,0.26297906,699.59,698.3,1.05504146]
[1735090165248,0.26297906,699.58,698.3,1.05504146]
[1735090165549,0.26297906,699.57,698.3,1.05504146]
[1735090165750,0.26297906,699.56,698.31,1.05504146]
[1735090165949,0.26297906,699.55,698.31,1.05504146]
[1735090166150,0.26297865,699.54,698.31,1.05504146]
[1735090166349,0.26297865,699.53,698.31,1.05504146]
[1735090166549,1.06663835,699.63,698.31,1.05504146]
[1735090166744,1.06663835,699.63,697.68,2.15404299]
[1735090166745,1.32961681,699.62,698.33,1.05504146]
[1735090166949,0.26297846,699.61,698.33,1.05504146]
[1735090168846,1.06663835,699.62,698.33,1.05504146]
[1735090169050,0.26298226,699.61,698.33,1.05504146]
[1735090169246,0.26298226,699.61,698.32,1.05504146]
[1735090169952,0.26298486,699.6,698.3,1.05504146]
[1735090170950,1.32962321,699.6,698.29,1.05504146]
[1735090171155,0.26298486,699.59,698.29,1.05504146]
[1735090171851,1.06663835,699.6,698.29,1.05504146]
[1735090172159,0.26298462,699.59,698.32,1.05504146]
[1735090172355,1.06663835,699.61,698.32,1.05504146]
[1735090172555,0.26298497,699.6,698.32,1.05504146]
[1735090173056,0.26298497,699.6,698.21,1.05504146]
[1735090173258,0.26298497,699.59,698.21,1.05504146]
[1735090173556,1.06663835,699.71,698.21,1.05504146]
[1735090173749,0.2629847,699.7,698.21,1.05504146]
[1735090174559,0.26298326,699.69,698.21,1.05504146]
[1735090175860,0.26298326,699.68,698.21,1.05504146]
[1735090176063,0.26298326,699.67,698.21,1.05504146]
[1735090176267,0.26298326,699.66,698.21,1.05504146]
[1735090176465,0.26298326,699.65,698.21,1.05504146]
[1735090176665,0.26298326,699.65,697.46,2.15404299]
[1735090176666,0.26298326,699.64,698.12,1.05504146]
[1735090176865,0.26298326,699.63,698.12,1.05504146]
[1735090177066,0.26298326,699.62,698.12,1.05504146]
[1735090177267,0.26301595,699.61,698.12,1.05504146]
[1735090177566,0.26301595,699.6,698.03,1.05504146]
[1735090177767,0.26301595,699.59,698.03,1.05504146]
[1735090177961,0.26301595,699.58,698.03,1.05504146]
[1735090178161,0.26301595,699.57,698.03,1.05504146]
[1735090178361,1.06663835,699.75,698.03,1.05504146]
[1735090178666,1.06663835,699.74,697.99,1.05504146]
[1735090178862,0.26301753,699.73,697.99,1.05504146]
[1735090179369,1.06663835,699.72,698.03,1.05504146]
[1735090179569,0.26301753,699.71,698.03,1.05504146]
[1735090181371,0.26301753,699.71,697.97,1.05504146]
[1735090181571,0.26301753,699.7,697.97,1.05504146]
[1735090181869,0.26301753,699.69,697.97,1.05504146]
[1735090182068,0.26301753,699.68,697.97,1.05504146]
[1735090182268,0.26301753,699.67,697.97,1.05504146]
[1735090182464,0.26301753,699.66,697.98,1.05504146]
[1735090182666,0.26301753,699.65,697.98,1.05504146]
[1735090182863,0.26301753,699.64,697.98,1.05504146]
[1735090183062,1.06663835,699.78,697.98,1.05504146]
[1735090183364,0.26303133,699.77,697.91,1.05504146]
[1735090183669,0.26303133,699.76,697.91,1.05504146]
[1735090183969,0.26303133,699.75,697.91,1.05504146]
[1735090184168,0.26303133,699.74,697.91,1.05504146]
[1735090184368,0.26303133,699.73,697.91,1.05504146]
[1735090184668,0.26303133,699.72,697.78,1.05504146]
[1735090184864,0.26303133,699.71,697.78,1.05504146]
[1735090185064,1.06663835,699.93,697.78,1.05504146]
[1735090185065,0.26303133,699.7,697.78,1.05504146]
[1735090185272,0.26303133,699.69,697.76,1.05504146]
[1735090185568,0.26303133,699.68,697.76,1.05504146]
[1735090185765,1.06663835,699.92,697.76,1.05504146]
[1735090185969,0.54877854,699.91,697.76,1.05504146]
[1735090186171,0.54878262,699.9,697.76,1.05504146]
[1735090186370,0.54878671,699.89,697.76,1.05504146]
[1735090186570,0.54879079,699.88,697.76,1.05504146]
[1735090186772,0.54879487,699.87,697.74,1.05504146]
[1735090186972,0.26302752,699.86,697.74,1.05504146]
[1735090187576,0.54879896,699.86,697.74,1.05504146]
[1735090187874,0.26302752,699.85,697.74,1.05504146]
[1735090188773,0.26302752,699.85,696.75,2.15404299]
[1735090188774,0.26302752,699.85,697.8,1.05504146]
[1735090189675,0.26302752,699.85,697.81,1.05504146]
[1735090191778,1.32966587,699.85,697.91,1.05504146]
[1735090191973,0.26302752,699.84,697.91,1.05504146]
[1735090192775,1.06663835,699.8,698.11,1.05504146]
[1735090192972,0.26302752,699.79,698.11,1.05504146]
[1735090193477,0.26302752,699.79,697.93,1.26604976]
[1735090193478,0.26302752,699.79,698.12,1.05504146]
[1735090193670,0.26302752,699.78,698.12,1.05504146]
[1735090193874,0.26302752,699.77,698.12,1.05504146]
[1735090194075,0.26302752,699.76,698.12,1.05504146]
[1735090194274,1.06663835,699.81,698.12,1.05504146]
[1735090194475,0.26298302,699.8,698.12,1.05504146]
[1735090194673,0.26298302,699.8,698.13,1.05504146]
[1735090197278,0.26298573,699.79,698.13,1.05504146]
[1735090197472,0.26298573,699.78,698.13,1.05504146]
[1735090197675,1.06663835,699.81,698.12,1.05504146]
[1735090197676,0.26298573,699.77,698.12,1.05504146]
[1735090197877,0.26298573,699.76,698.12,1.05504146]
[1735090198074,0.26298573,699.75,698.12,1.05504146]
[1735090198378,0.26298573,699.74,698.12,1.05504146]
[1735090198578,0.26298573,699.73,698.16,1.05504146]
[1735090199376,0.26298573,699.73,698.04,1.05504146]
[1735090199580,1.06663835,699.72,698.04,1.05504146]
[1735090199779,0.26298573,699.71,698.04,1.05504146]
[1735090199978,0.26301984,699.7,698.04,1.05504146]
[1735090200177,0.26301984,699.69,698.04,1.05504146]
[1735090200379,0.26301984,699.68,698.04,1.05504146]
[1735090200581,0.26301984,699.67,698.04,1.05504146]
[1735090200779,0.26301984,699.66,698.04,1.05504146]
[1735090201078,0.26301984,699.65,698.04,1.05504146]
[1735090201284,0.26301984,699.64,698.04,1.05504146]
[1735090201478,0.26301984,699.63,698.04,1.05504146]
[1735090201685,0.26301984,699.62,698.01,1.05504146]
[1735090201883,0.26301984,699.61,698.01,1.05504146]
[1735090202080,0.26301984,699.6,698.01,1.05504146]
[1735090202278,0.26301984,699.59,698.01,1.05504146]
[1735090202480,0.26301984,699.58,698.01,1.05504146]
[1735090202677,0.28577144,699.86,697.25,2.15404299]
[1735090202678,0.26301984,699.57,697.99,1.05504146]
[1735090202878,0.26301984,699.56,697.99,1.05504146]
[1735090203080,0.26301984,699.55,697.99,1.05504146]
[1735090203281,0.26301984,699.54,697.99,1.05504146]
[1735090203480,0.26301984,699.54,697.25,2.15404299]
[1735090203481,0.26301984,699.53,698.0,1.05504146]
[1735090203684,0.26301984,699.52,698.0,1.05504146]
[1735090203881,0.26301984,699.51,698.0,1.05504146]
[1735090204085,0.26301984,699.5,698.0,1.05504146]
[1735090204284,0.26301984,699.49,697.93,1.05504146]
[1735090204485,0.26301984,699.48,697.93,1.05504146]
[1735090204681,0.26302758,699.47,697.93,1.05504146]
[1735090204882,0.26302758,699.46,697.93,1.05504146]
[1735090205085,1.06663835,699.65,697.93,1.05504146]
[1735090205286,1.27996602,699.84,697.77,1.30931252]
[1735090205287,0.26302896,699.64,698.01,1.05504146]
[1735090205484,1.06663835,699.66,698.01,1.05504146]
[1735090205485,0.26302896,699.63,698.01,1.05504146]
[1735090205686,0.26302896,699.62,698.01,1.05504146]
[1735090205986,0.26302896,699.61,698.0,1.05504146]
[1735090206189,0.26302896,699.6,698.0,1.05504146]
[1735090206388,0.26302896,699.59,698.0,1.05504146]
[1735090206590,0.26302896,699.58,698.0,1.05504146]
[1735090206791,0.26302896,699.57,698.0,1.05504146]
[1735090206990,0.26302896,699.56,698.04,1.05504146]
[1735090207186,0.26301992,699.55,698.04,1.05504146]
[1735090207390,1.06663835,699.7,698.04,1.05504146]
[1735090207391,0.26302086,699.54,698.04,1.05504146]
[1735090207589,0.26302086,699.53,698.04,1.05504146]
[1735090207784,0.26302086,699.52,698.04,1.05504146]
[1735090207991,0.26302086,699.51,698.04,1.05504146]
[1735090208191,0.26302086,699.5,698.04,1.05504146]
[1735090208489,0.26302086,699.49,698.04,1.05504146]
[1735090208693,0.26302086,699.48,698.04,1.05504146]
[1735090208991,0.26302086,699.47,698.04,1.05504146]
[1735090209291,0.26302086,699.46,698.05,1.05504146]
[1735090209485,1.06663835,699.66,698.05,1.05504146]
[1735090209688,0.26301874,699.65,698.05,1.05504146]
[1735090210091,1.06663835,699.66,698.05,1.05504146]
[1735090210292,0.26301274,699.65,698.07,1.05504146]
[1735090210992,1.06663835,699.63,698.12,1.05504146]
[1735090211293,0.26301896,699.62,698.12,1.05504146]
[1735090211693,0.26301896,699.62,697.95,1.26604976]
[1735090211694,0.26301896,699.62,697.92,1.05504146]
[1735090211993,0.26301896,699.61,697.92,1.05504146]
[1735090212195,0.26301896,699.6,697.92,1.05504146]
[1735090212394,0.26301896,699.59,697.92,1.05504146]
[1735090212596,1.06663835,699.81,697.92,1.05504146]
[1735090212795,0.26301551,699.8,697.93,1.05504146]
[1735090212994,0.26301551,699.79,697.93,1.05504146]
[1735090213193,0.26301551,699.78,697.93,1.05504146]
[1735090213393,0.26301551,699.77,697.93,1.05504146]
[1735090213693,0.26301551,699.76,697.93,1.05504146]
[1735090213894,0.28577144,699.86,697.87,1.05504146]
[1735090213895,0.26301551,699.75,697.87,1.05504146]
[1735090214193,0.26301551,699.74,697.87,1.05504146]
[1735090214396,0.26301551,699.73,697.87,1.05504146]
[1735090214596,0.26301551,699.72,697.87,1.05504146]
[1735090214790,0.26301551,699.71,697.87,1.05504146]
[1735090214992,0.26301551,699.7,697.9,1.05504146]
[1735090215192,0.26301551,699.69,697.9,1.05504146]
[1735090215392,0.26301551,699.68,697.9,1.05504146]
[1735090215592,0.26301551,699.67,697.9,1.05504146]
[1735090215795,0.26300232,699.66,697.9,1.05504146]
[1735090216089,0.26300232,699.66,697.03,2.15404299]
[1735090216090,0.26300232,699.65,697.91,1.05504146]
[1735090216295,1.06663835,699.83,697.91,1.05504146]
[1735090216497,0.26299691,699.82,697.91,1.05504146]
[1735090216994,0.26299691,699.82,697.04,2.15404299]
[1735090216995,0.26299691,699.82,697.96,1.05504146]
[1735090217194,0.26299691,699.81,697.96,1.05504146]
[1735090217394,0.26299691,699.8,697.96,1.05504146]
[1735090217594,0.26299691,699.79,697.96,1.05504146]
[1735090217793,0.26299691,699.78,697.96,1.05504146]
[1735090217995,0.26299691,699.77,697.96,1.05504146]
[1735090218194,0.26299691,699.76,697.93,1.05504146]
[1735090218394,1.06663835,699.85,697.93,1.05504146]
[1735090218595,0.26301414,699.84,697.93,1.05504146]
[1735090219091,0.26301414,699.83,697.93,1.05504146]
[1735090219401,0.26304508,699.82,697.93,1.05504146]
[1735090219595,0.28577144,699.86,697.92,1.05504146]
[1735090219596,0.26304508,699.81,697.92,1.05504146]
[1735090219795,0.26304508,699.8,697.92,1.05504146]
[1735090219996,1.06663835,699.84,697.92,1.05504146]
[1735090219997,0.26304508,699.79,697.92,1.05504146]
[1735090220198,0.26304508,699.78,697.92,1.05504146]
[1735090220394,0.26304508,699.77,697.92,1.05504146]
[1735090220599,1.06663835,699.54,698.02,1.05504146]
[1735090220793,0.26304508,699.53,698.02,1.05504146]
[1735090221197,0.26305109,699.52,698.02,1.05504146]
[1735090221399,0.26305109,699.51,698.02,1.05504146]
[1735090221600,0.26305109,699.5,698.04,1.05504146]
[1735090221794,0.26305109,699.49,698.04,1.05504146]
[1735090221997,0.26305109,699.48,698.04,1.05504146]
[1735090222198,0.26305109,699.47,698.04,1.05504146]
[1735090222401,0.26305109,699.46,698.04,1.05504146]
[1735090222596,0.26305109,699.45,698.04,1.05504146]
[1735090222801,0.26305109,699.44,698.05,1.05504146]
[1735090222999,0.26305109,699.43,698.05,1.05504146]
[1735090223195,0.26305109,699.42,698.05,1.05504146]
[1735090223401,0.26305109,699.41,698.04,1.05504146]
[1735090223601,0.26305109,699.4,698.04,1.05504146]
[1735090223895,1.06663835,699.53,698.04,1.05504146]
[1735090224098,0.26305073,699.52,698.04,1.05504146]
[1735090224298,0.26305073,699.52,698.03,1.05504146]
[1735090224502,0.26305073,699.51,698.03,1.05504146]
[1735090224697,0.26305073,699.5,698.03,1.05504146]
[1735090224904,0.26305073,699.49,698.03,1.05504146]
[1735090225098,0.26305073,699.48,698.04,1.05504146]
[1735090225407,0.26305073,699.47,698.04,1.05504146]
[1735090225606,0.26305073,699.46,698.04,1.05504146]
[1735090225798,0.26305073,699.45,698.04,1.05504146]
[1735090226000,1.06663835,699.71,697.85,1.05504146]
[1735090226203,0.26305713,699.7,697.85,1.05504146]
[1735090226805,0.26305713,699.7,697.84,1.05504146]
[1735090227207,0.26305713,699.69,697.84,1.05504146]
[1735090227502,0.26307722,699.68,697.84,1.05504146]
[1735090227705,0.26307722,699.67,697.84,1.05504146]
[1735090227903,0.26307722,699.66,697.84,1.05504146]
[1735090228106,1.27996602,699.91,697.84,1.05504146]
[1735090228107,1.06663835,699.52,698.0,1.05504146]
[1735090228402,0.26307722,699.51,698.0,1.05504146]
[1735090228807,1.06663835,699.48,697.92,1.05504146]
[1735090229007,0.26307722,699.47,697.92,1.05504146]
[1735090229601,0.26308223,699.46,697.93,1.05504146]
[1735090230407,0.26308223,699.46,697.88,1.05504146]
[1735090230608,0.26308223,699.45,697.88,1.05504146]
[1735090230809,0.26308223,699.44,697.88,1.05504146]
[1735090231008,0.26308223,699.43,697.88,1.05504146]
[1735090231207,0.26308223,699.42,697.88,1.05504146]
[1735090231409,0.26308223,699.41,697.81,1.05504146]
[1735090231707,1.06663835,699.59,697.81,1.05504146]
[1735090231905,0.26308151,699.58,697.81,1.05504146]
[1735090232108,0.26308151,699.58,697.72,1.05504146]
[1735090232305,0.2630842,699.57,697.72,1.05504146]
[1735090232514,0.2630842,699.56,697.72,1.05504146]
[1735090232706,0.2630842,699.55,697.72,1.05504146]
[1735090232906,0.2630842,699.54,697.72,1.05504146]
[1735090233115,0.2630842,699.53,697.67,1.05504146]
[1735090233307,0.2630842,699.52,697.67,1.05504146]
[1735090233507,0.2630842,699.51,697.67,1.05504146]
[1735090233708,0.2630842,699.5,697.67,1.05504146]
[1735090233906,0.2630842,699.49,697.67,1.05504146]
[1735090234108,0.2630842,699.48,697.67,1.05504146]
[1735090234315,0.2630842,699.47,697.65,1.05504146]
[1735090234511,0.2630842,699.46,697.65,1.05504146]
[1735090234714,0.2630842,699.45,697.65,1.05504146]
[1735090234913,0.26310993,699.44,697.65,1.05504146]
[1735090235114,0.26310993,699.44,696.44,2.15404299]
[1735090235115,0.26310993,699.43,697.59,1.05504146]
[1735090235312,1.06663835,699.67,697.59,1.05504146]
[1735090235313,0.26310993,699.42,697.59,1.05504146]
[1735090235513,0.26310993,699.41,697.59,1.05504146]
[1735090235713,0.26310993,699.4,697.59,1.05504146]
[1735090235910,0.26310993,699.39,697.59,1.05504146]
[1735090236116,0.26310993,699.38,697.56,1.05504146]
[1735090236319,0.26310993,699.37,697.56,1.05504146]
[1735090236616,0.26310993,699.36,697.56,1.05504146]
[1735090236913,0.26310993,699.35,697.71,1.05504146]
[1735090237114,0.26310993,699.34,697.71,1.05504146]
[1735090237310,0.26310993,699.33,697.71,1.05504146]
[1735090237514,0.26310993,699.32,697.71,1.05504146]
[1735090237715,1.06663835,699.53,697.71,1.05504146]
[1735090237915,0.26311229,699.52,697.71,1.05504146]
[1735090238416,0.26311229,699.52,697.7,1.05504146]
[1735090238615,1.06663835,699.55,697.7,1.05504146]
[1735090238616,0.26311229,699.51,697.7,1.05504146]
[1735090238811,0.26311229,699.5,697.7,1.05504146]
[1735090239014,0.26311229,699.49,697.7,1.05504146]
[1735090239215,0.26311229,699.48,697.7,1.05504146]
[1735090239410,0.26311229,699.47,697.73,1.05504146]
[1735090239620,0.26311229,699.46,697.73,1.05504146]
[1735090239815,0.26311229,699.45,697.73,1.05504146]
[1735090240016,0.26311229,699.44,697.73,1.05504146]
[1735090240210,1.06663835,699.54,697.73,1.05504146]
[1735090240211,0.26311229,699.43,697.73,1.05504146]
[1735090240412,1.06663835,699.63,697.68,1.05504146]
[1735090240611,0.26310229,699.62,697.68,1.05504146]
[1735090241517,0.26310229,699.62,697.69,1.05504146]
[1735090241920,0.26309743,699.61,697.69,1.05504146]
[1735090242120,0.26309743,699.6,697.69,1.05504146]
[1735090242320,0.26309743,699.59,697.69,1.05504146]
[1735090242514,0.26309743,699.58,697.69,1.05504146]
[1735090242718,0.26309743,699.57,697.69,1.05504146]
[1735090242917,0.26309743,699.56,697.69,1.05504146]
[1735090243118,0.26309743,699.55,697.69,1.05504146]
[1735090243319,0.26309947,699.54,697.69,1.05504146]
[1735090243521,0.26309947,699.53,697.69,1.05504146]
[1735090243821,0.26309947,699.52,697.69,1.05504146]
[1735090244022,0.26309947,699.51,697.69,1.05504146]
[1735090244222,0.26309947,699.5,697.63,1.05504146]
[1735090244416,0.26309947,699.49,697.63,1.05504146]
[1735090244617,0.26309947,699.48,697.63,1.05504146]
[1735090244822,0.26309947,699.47,697.63,1.05504146]
[1735090245021,0.26309947,699.46,697.63,1.05504146]
[1735090245222,0.26309947,699.45,697.63,1.05504146]
[1735090245522,0.26309947,699.44,697.63,1.05504146]
[1735090245823,0.26309947,699.43,697.63,1.05504146]
[1735090246124,0.26309171,699.42,697.64,1.05504146]
[1735090246422,0.26309171,699.41,697.64,1.05504146]
[1735090246622,0.26309171,699.4,697.64,1.05504146]
[1735090246823,0.26309171,699.4,696.78,2.15404299]
[1735090246824,1.06663835,699.73,697.62,1.05504146]
[1735090247118,0.26309087,699.72,697.62,1.05504146]
[1735090247519,0.26309087,699.72,697.63,1.05504146]
[1735090248424,1.32972922,699.72,697.63,1.05504146]
[1735090248623,0.26309087,699.71,697.63,1.05504146]
[1735090248823,1.06663835,699.72,697.63,1.05504146]
[1735090249021,0.26309444,699.71,697.63,1.05504146]
[1735090249723,0.26309444,699.7,697.63,1.05504146]
[1735090249924,0.26309444,699.69,697.63,1.05504146]
[1735090250117,1.32973279,699.68,697.67,1.05504146]
[1735090250317,0.26309444,699.67,697.67,1.05504146]
[1735090250924,1.06663835,699.66,697.69,1.05504146]
[1735090251221,0.26309444,699.65,697.69,1.05504146]
[1735090251626,0.26308174,699.64,697.69,1.05504146]
[1735090251826,0.26308174,699.63,697.69,1.05504146]
[1735090252026,0.26308174,699.62,697.72,1.05504146]
[1735090252224,0.26308174,699.61,697.72,1.05504146]
[1735090252427,0.26308639,699.6,697.72,1.05504146]
[1735090252629,0.26308639,699.59,697.72,1.05504146]
[1735090252828,0.26308639,699.58,697.71,1.05504146]
[1735090253027,0.26308639,699.57,697.71,1.05504146]
[1735090253328,0.26308639,699.56,697.71,1.05504146]
[1735090253527,1.06663835,699.5,697.89,1.05504146]
[1735090253721,0.26308639,699.49,697.89,1.05504146]
[1735090254631,1.06663835,699.44,697.94,1.05504146]
[1735090254831,0.26308936,699.43,697.94,1.05504146]
[1735090255331,0.26308936,699.43,697.93,1.05504146]
[1735090255527,0.26308936,699.42,697.93,1.05504146]
[1735090255724,0.26308936,699.41,697.93,1.05504146]
[1735090256032,0.26308936,699.4,697.93,1.05504146]
[1735090256332,0.26308936,699.39,697.93,1.05504146]
[1735090256631,0.26308936,699.38,697.93,1.05504146]
[1735090256827,0.26308936,699.37,697.93,1.05504146]
[1735090257025,0.26308936,699.36,697.93,1.05504146]
[1735090257331,0.26308936,699.35,697.94,1.05504146]
[1735090257627,0.26308936,699.34,697.94,1.05504146]
[1735090257825,0.26308936,699.33,697.94,1.05504146]
[1735090258032,0.26308936,699.32,697.94,1.05504146]
[1735090258227,0.26308936,699.31,697.94,1.05504146]
[1735090258530,0.26308936,699.3,697.94,1.05504146]
[1735090258725,0.26308936,699.29,697.94,1.05504146]
[1735090258931,1.06663835,699.43,697.94,1.05504146]
[1735090259133,0.26307707,699.42,697.94,1.05504146]
[1735090259331,0.26307707,699.41,697.94,1.05504146]
[1735090259531,0.26307707,699.4,697.94,1.05504146]
[1735090259726,0.26307707,699.39,697.94,1.05504146]
[1735090259927,0.26307863,699.38,697.94,1.05504146]
[1735090260130,0.26307863,699.37,697.94,1.05504146]
[1735090260332,0.26307863,699.44,697.94,1.05504146]
[1735090260533,0.26307974,699.43,697.88,1.05504146]
[1735090260728,0.26307974,699.42,697.88,1.05504146]
[1735090260928,0.26307974,699.41,697.88,1.05504146]
[1735090261228,0.26307974,699.4,697.88,1.05504146]
[1735090261430,0.26307974,699.39,697.88,1.05504146]
[1735090261631,0.26307974,699.38,697.88,1.05504146]
[1735090261831,0.26307974,699.51,697.88,1.05504146]
[1735090262030,1.06663835,699.49,697.9,1.05504146]
[1735090263136,1.06663835,699.75,697.77,1.05504146]
[1735090263334,0.26305096,699.74,697.77,1.05504146]
[1735090264034,0.26305096,699.74,696.82,2.15404299]
[1735090264035,0.26305096,699.74,697.78,1.05504146]
[1735090264235,0.26305096,699.73,697.78,1.05504146]
[1735090264431,0.26305096,699.72,697.78,1.05504146]
[1735090264632,0.26305096,699.76,697.78,1.05504146]
[1735090264829,0.26305096,699.75,697.78,1.05504146]
[1735090265028,0.26305096,699.74,697.77,1.05504146]
[1735090265233,0.26305096,699.73,697.77,1.05504146]
[1735090265433,0.26305096,699.72,697.77,1.05504146]
[1735090265630,0.26305096,699.71,697.77,1.05504146]
[1735090265834,0.26305096,699.7,697.77,1.05504146]
[1735090266031,0.26305096,699.69,697.75,1.05504146]
[1735090266334,0.26305096,699.68,697.75,1.05504146]
[1735090266536,0.26305096,699.67,697.75,1.05504146]
[1735090266736,0.26305096,699.66,697.71,1.05504146]
[1735090267036,0.26305096,699.65,697.71,1.05504146]
[1735090267239,1.06663835,699.74,697.71,1.05504146]
[1735090267439,0.54889862,699.73,697.71,1.05504146]
[1735090267738,0.5489027,699.72,697.71,1.05504146]
[1735090267938,0.26307409,699.71,697.71,1.05504146]
[1735090270035,1.06663835,699.7,697.71,1.05504146]
[1735090270238,0.26309766,699.69,697.71,1.05504146]
[1735090270636,0.28584495,699.68,697.71,1.05504146]
[1735090270838,0.26309766,699.67,697.71,1.05504146]
[1735090271342,1.06663835,699.51,697.8,1.05504146]
[1735090271536,0.26309766,699.5,697.8,1.05504146]
[1735090271936,0.26309766,699.5,697.81,1.05504146]
[1735090272741,0.26309766,699.5,697.82,1.05504146]
[1735090272940,0.26310609,699.49,697.82,1.05504146]
[1735090273142,0.26310609,699.5,697.82,1.05504146]
[1735090273335,0.26310609,699.49,697.82,1.05504146]
[1735090273538,0.26310609,699.48,697.82,1.05504146]
[1735090273740,0.26310609,699.47,697.82,1.05504146]
[1735090273943,0.26310609,699.46,697.78,1.05504146]
[1735090274946,0.26310609,699.46,697.79,1.05504146]
[1735090275746,0.26310978,699.45,697.79,1.05504146]
[1735090275943,0.26310978,699.44,697.68,1.05504146]
[1735090276141,0.26310978,699.43,697.68,1.05504146]
[1735090276340,0.26310821,699.42,697.68,1.05504146]
[1735090276537,0.26310821,699.41,697.68,1.05504146]
[1735090276740,0.26310821,699.4,697.68,1.05504146]
[1735090276941,1.06663835,699.57,697.68,1.05504146]
[1735090277141,0.26309251,699.56,697.69,1.05504146]
[1735090278249,0.26309251,699.56,697.47,1.26604976]
[1735090278250,0.26309251,699.56,697.74,1.05504146]
[1735090278543,0.26309985,699.55,697.74,1.05504146]
[1735090278747,0.26309985,699.54,697.74,1.05504146]
[1735090279044,0.26309985,699.53,697.7,1.05504146]
[1735090279349,0.26309985,699.52,697.7,1.05504146]
[1735090279542,0.26309985,699.51,697.7,1.05504146]
[1735090279745,0.26309985,699.5,697.7,1.05504146]
[1735090279940,0.26309985,699.49,697.72,1.05504146]
[1735090280142,1.06663835,699.6,697.72,1.05504146]
[1735090280143,0.26309985,699.48,697.72,1.05504146]
[1735090280346,1.06663835,699.6,697.72,1.05504146]
[1735090280347,0.26309985,699.47,697.72,1.05504146]
[1735090280546,0.26309985,699.46,697.72,1.05504146]
[1735090280746,0.26309985,699.46,697.16,2.15404299]
[1735090280747,0.26309985,699.45,697.77,1.05504146]
[1735090280948,0.26309985,699.44,697.77,1.05504146]
[1735090281251,0.26308774,699.43,697.77,1.05504146]
[1735090281446,0.26308774,699.42,697.77,1.05504146]
[1735090281649,0.28584495,699.68,697.78,1.05504146]
[1735090281650,0.26308774,699.41,697.78,1.05504146]
[1735090281849,0.26308774,699.4,697.78,1.05504146]
[1735090282050,0.26308774,699.39,697.78,1.05504146]
[1735090282248,0.26308774,699.38,697.78,1.05504146]
[1735090282447,0.26308774,699.37,697.78,1.05504146]
[1735090282651,1.06663835,699.56,697.78,1.05504146]
[1735090282953,0.26309812,699.55,697.79,1.05504146]
[1735090283149,0.26309812,699.56,697.79,1.05504146]
[1735090283354,0.26309812,699.55,697.79,1.05504146]
[1735090283655,0.26309812,699.54,697.75,1.05504146]
[1735090283849,0.26309812,699.53,697.75,1.05504146]
[1735090284048,0.26309231,699.52,697.75,1.05504146]
[1735090284251,0.26309231,699.51,697.76,1.05504146]
[1735090284453,0.26309231,699.5,697.76,1.05504146]
[1735090284655,0.26309231,699.49,697.76,1.05504146]